{"text_format":"1","workbook":"xlsx","n_sheets":2,"sheets":["Pasiūlymas","Subtiekėjai ir priedai"],"not_rendered":{"charts":0,"images":0,"macros":0,"external_links":0,"defined_names":0,"comments":0,"pivot_tables":0},"unopened":[],"bounds":{"document_bytes":16777216,"sheet_cells":100000,"rows_first":2000,"rows_last":500,"rows_between":2000,"halvings":0,"cell_chars":16384,"cell_head_chars":4096},"cells_cut":0,"cells_raw":0,"read":"whole","date_system":"1900"}

{"sheet":"Pasiūlymas","index":0,"n_rows":482,"n_cols":9,"rows_kept":482,"cut":false,"hidden":false,"merged":[[29,0,29,2],[29,3,29,5],[11,0,11,1],[11,2,11,5],[12,0,12,1],[12,2,12,5],[13,0,13,1],[13,2,13,5],[14,0,14,1],[14,2,14,5],[15,0,15,1],[15,2,15,5],[16,0,16,1],[16,2,16,5],[17,0,17,1],[17,2,17,5],[18,0,18,1],[18,2,18,5],[23,0,23,5],[19,0,19,1],[20,0,20,1],[19,2,19,5],[20,2,20,5],[22,0,22,5],[27,0,27,5],[28,0,28,5],[24,0,24,5],[25,0,25,5],[26,0,26,5]]}
[null,null,null,null,null,null,"Pirkimo dokumentų "]
["PIRKIMO SĄLYGŲ 2 PRIEDAS PASIŪLYMO FORMA",null,null,null,null,null,"2 priedas"]
[]
["MEDICINOS PRIEMONĖS "]
[]
["Kam:","Gynybos resursų agentūra prie KAM"]
[]
["Data:","2022-10-24"]
["Nr.:",622280]
["Vieta:","Vilnius"]
[]
["Tiekėjo pavadinimas / Ūkio subjektų grupės nariai:",null,"UAB AMI sprendimai"]
["Tiekėjo kodas (-ai):",null,125456226]
["Tiekėjo adresas (-ai):",null,"Laisvės pr. 77 B, 06122, Vilnius"]
["Tiekėjo PVM mokėtojo kodas(-ai):",null,"LT254562219"]
["Tiekėjo / Ūkio subjektų grupės atsakingo partnerio sąskaitos numeris, banko pavadinimas ir banko kodas (-ai):",null,"Swedbank AB, 73000"]
["Asmens atsakingo už pasiūlymą vardas, pavardė:",null,"Projektų vadybininkė Vilma Dambravienė"]
["Asmens atsakingo už pasiūlymą telefono numeris, el. pašto adresas:",null,"8 5 2375675, info@amis.lt"]
["Tiekėjo / Ūkio subjektų grupės, laimėjimo atveju, pasirašančio sutartį asmens vardas, pavardė, pareigos:",null,"Direktorius Vytautas Dambrava"]
["Tiekėjo / Ūkio subjektų grupės, laimėjimo atveju, už sutarties vykdymą atsakingo asmens vardas, pavardė, telefono numeris, elektroninio pašto adresas:"]
["(1) Tiekėjo / Ūkio subjektų grupės narių, (2) ūkio subjektų, kurių pajėgumais remiamasi, ir (3) jei pašalinimo pagrindai taikomi visiems subtiekėjams - subtiekėjų, kolegialaus priežiūros organo (Stebėtojų tarybos) ir (ar) kolegialaus valdymo organo (Valdybos) narių sąrašas (jei sudaryta) ir (ar) asmuo, kuriam suteikti VPĮ 46 str. 2 d. 2 p. numatyti įgaliojimai",null,null,null,null,null,{"$f":"IF((SUMPRODUCT(--(C21=\"\"))>0), \"Privaloma užpildyti, kai taikomi pašalinimo pagrindai\", \"\")","v":"Privaloma užpildyti, kai taikomi pašalinimo pagrindai"}]
[]
["Tiekėjo patvirtinimai:"]
["1. Šiuo pasiūlymu pažymime, kad sutinkame su visomi pirkimo sąlygomis, nustatytomis:"]
["1.1. viešojo pirkimo dokumentuose"]
["1.2. kituose pirkimo dokumentuose (jų paaiškinimuose, papildymuose)."]
["2. Patvirtiname, kad informacija ir duomenys, pateikti pasiūlyme, yra teisingi ir apima viską, ko reikia tinkamam sutarties įvykdymui"]
["3. Patvirtiname, kad jei pasiūlyme nenurodyti kolegialaus priežiūros/valdymo organų nariai, šie organai juridiniuose asmenyse nėra sudaryti (taikoma, kai pirkimo dokumentuose nustatyti pašalinimo pagrindai)."]
["4. Pasiūlymas galioja iki termino, nustatyto pirkimo dokumentuose."]
["5. Tais atvejais, kai pagal galiojančius teisės aktus tiekėjui nereikia mokėti PVM, jis nurodo priežastis, dėl kurių PVM nemoka:"]
["6. Tiekėjas kainas pateikia, nurodydamas ne daugiau skaičių po kablelio, nei leidžiama pirkimo dokumentuose."]
[]
[]
["16. DALIS","ADATA, INJEKCINĖ, STERILI"]
[]
["Tiekėjo pasiūlymas:"]
["Nr.","Pavadinimas","Kiekis","Mato vienetas","Kaina be PVM, Eur","Suma be PVM, Eur","Prekės pavadinimas, modelis, kodas","Pakuotės dydis (prekių skaičius pakuotėje)","Gamintojas, šalis"]
["16.","Adata, injekcinė, sterili"]
["16.1.","Adata, injekcinė, sterili",5000,"vnt.",null,{"$f":"IF(ISBLANK(E39),\"\", PRODUCT(C39,E39))","v":""}]
[null,null,null,null,"Suma be PVM",{"$f":"IF(F39=\"\",\"\",SUM(F39:F39))","v":""},{"$f":"IF(F39=\"\",\"Neužpildytos visos objektų kainos\",\"\")","v":"Neužpildytos visos objektų kainos"}]
[null,null,null,null,"PVM suma"]
[null,null,null,null,"Suma su PVM",{"$f":"IF(ISBLANK(F41), \"\", SUM(F40:F41))","v":""}]
[]
[]
[]
["17. DALIS","ADATA TRACHĖJOS PRADŪRIMUI, STERILI"]
[]
["Tiekėjo pasiūlymas:"]
["Nr.","Pavadinimas","Kiekis","Mato vienetas","Kaina be PVM, Eur","Suma be PVM, Eur","Prekės pavadinimas, modelis, kodas","Pakuotės dydis (prekių skaičius pakuotėje)","Gamintojas, šalis"]
["17.","Adata trachėjos pradūrimui, sterili"]
["17.1.","Adata trachėjos pradūrimui, sterili",100,"vnt.",100.8,{"$f":"IF(ISBLANK(E51),\"\", PRODUCT(C51,E51))","v":10080},"Cricothyrotomy devices, Quicktrach I, Nr.30-04-004-1/ Nr.30-04-904","1vnt.","VBM Medizintechnik, Vokietija"]
[null,null,null,null,"Suma be PVM",{"$f":"IF(F51=\"\",\"\",SUM(F51:F51))","v":10080},{"$f":"IF(F51=\"\",\"Neužpildytos visos objektų kainos\",\"\")","v":""}]
[null,null,null,null,"PVM suma",{"$f":"F52*0.21","v":2116.7999999999997}]
[null,null,null,null,"Suma su PVM",{"$f":"IF(ISBLANK(F53), \"\", SUM(F52:F53))","v":12196.8}]
[]
[]
[]
["18. DALIS","KRIKOTIROIDOTOMIJOS RINKINYS, STERILUS"]
[]
["Tiekėjo pasiūlymas:"]
["Nr.","Pavadinimas","Kiekis","Mato vienetas","Kaina be PVM, Eur","Suma be PVM, Eur","Prekės pavadinimas, modelis, kodas","Pakuotės dydis (prekių skaičius pakuotėje)","Gamintojas, šalis"]
["18.","Krikotiroidotomijos rinkinys, sterilus"]
["18.1.","Krikotiroidotomijos rinkinys, sterilus",500,"vnt.",null,{"$f":"IF(ISBLANK(E63),\"\", PRODUCT(C63,E63))","v":""}]
[null,null,null,null,"Suma be PVM",{"$f":"IF(F63=\"\",\"\",SUM(F63:F63))","v":""},{"$f":"IF(F63=\"\",\"Neužpildytos visos objektų kainos\",\"\")","v":"Neužpildytos visos objektų kainos"}]
[null,null,null,null,"PVM suma"]
[null,null,null,null,"Suma su PVM",{"$f":"IF(ISBLANK(F65), \"\", SUM(F64:F65))","v":""}]
[]
[]
[]
["19. DALIS","SKYSČIŲ PERPYLIMO SISTEMA, VIENKARTINĖ"]
[]
["Tiekėjo pasiūlymas:"]
["Nr.","Pavadinimas","Kiekis","Mato vienetas","Kaina be PVM, Eur","Suma be PVM, Eur","Prekės pavadinimas, modelis, kodas","Pakuotės dydis (prekių skaičius pakuotėje)","Gamintojas, šalis"]
["19.","Skysčių perpylimo sistema, vienkartinė"]
["19.1.","Skysčių perpylimo sistema, vienkartinė",25800,"vnt.",null,{"$f":"IF(ISBLANK(E75),\"\", PRODUCT(C75,E75))","v":""}]
[null,null,null,null,"Suma be PVM",{"$f":"IF(F75=\"\",\"\",SUM(F75:F75))","v":""},{"$f":"IF(F75=\"\",\"Neužpildytos visos objektų kainos\",\"\")","v":"Neužpildytos visos objektų kainos"}]
[null,null,null,null,"PVM suma"]
[null,null,null,null,"Suma su PVM",{"$f":"IF(ISBLANK(F77), \"\", SUM(F76:F77))","v":""}]
[]
[]
[]
["20. DALIS","KATETERIS \"DRUGELIO\" TIPO"]
[]
["Tiekėjo pasiūlymas:"]
["Nr.","Pavadinimas","Kiekis","Mato vienetas","Kaina be PVM, Eur","Suma be PVM, Eur","Prekės pavadinimas, modelis, kodas","Pakuotės dydis (prekių skaičius pakuotėje)","Gamintojas, šalis"]
["20.","Kateteris \"drugelio\" tipo"]
["20.1.","Kateteris \"drugelio\" tipo",1500,"vnt.",null,{"$f":"IF(ISBLANK(E87),\"\", PRODUCT(C87,E87))","v":""}]
[null,null,null,null,"Suma be PVM",{"$f":"IF(F87=\"\",\"\",SUM(F87:F87))","v":""},{"$f":"IF(F87=\"\",\"Neužpildytos visos objektų kainos\",\"\")","v":"Neužpildytos visos objektų kainos"}]
[null,null,null,null,"PVM suma"]
[null,null,null,null,"Suma su PVM",{"$f":"IF(ISBLANK(F89), \"\", SUM(F88:F89))","v":""}]
[]
[]
[]
["21. DALIS","TRIŠAKIS, 3 KANALŲ, INFUZINEI SISTEMAI"]
[]
["Tiekėjo pasiūlymas:"]
["Nr.","Pavadinimas","Kiekis","Mato vienetas","Kaina be PVM, Eur","Suma be PVM, Eur","Prekės pavadinimas, modelis, kodas","Pakuotės dydis (prekių skaičius pakuotėje)","Gamintojas, šalis"]
["21.","Trišakis, 3 kanalų, infuzinei sistemai"]
["21.1.","Trišakis, 3 kanalų, infuzinei sistemai",500,"vnt.",null,{"$f":"IF(ISBLANK(E99),\"\", PRODUCT(C99,E99))","v":""}]
[null,null,null,null,"Suma be PVM",{"$f":"IF(F99=\"\",\"\",SUM(F99:F99))","v":""},{"$f":"IF(F99=\"\",\"Neužpildytos visos objektų kainos\",\"\")","v":"Neužpildytos visos objektų kainos"}]
[null,null,null,null,"PVM suma"]
[null,null,null,null,"Suma su PVM",{"$f":"IF(ISBLANK(F101), \"\", SUM(F100:F101))","v":""}]
[]
[]
[]
["22. DALIS","KATETERIS, ATSIURBIMO, SU PIRŠTO KONTROLĖS ANGA, STERILUS"]
[]
["Tiekėjo pasiūlymas:"]
["Nr.","Pavadinimas","Kiekis","Mato vienetas","Kaina be PVM, Eur","Suma be PVM, Eur","Prekės pavadinimas, modelis, kodas","Pakuotės dydis (prekių skaičius pakuotėje)","Gamintojas, šalis"]
["22.","Kateteris, atsiurbimo, su piršto kontrolės anga, sterilus"]
["22.1.","Kateteris, atsiurbimo, su piršto kontrolės anga, sterilus",300,"vnt.",null,{"$f":"IF(ISBLANK(E111),\"\", PRODUCT(C111,E111))","v":""}]
[null,null,null,null,"Suma be PVM",{"$f":"IF(F111=\"\",\"\",SUM(F111:F111))","v":""},{"$f":"IF(F111=\"\",\"Neužpildytos visos objektų kainos\",\"\")","v":"Neužpildytos visos objektų kainos"}]
[null,null,null,null,"PVM suma"]
[null,null,null,null,"Suma su PVM",{"$f":"IF(ISBLANK(F113), \"\", SUM(F112:F113))","v":""}]
[]
[]
[]
["23. DALIS","PRIEMONĖS ŠLAPIMO PŪSLĖS KATETERIZACIJAI"]
[]
["Tiekėjo pasiūlymas:"]
["Nr.","Pavadinimas","Kiekis","Mato vienetas","Kaina be PVM, Eur","Suma be PVM, Eur","Prekės pavadinimas, modelis, kodas","Pakuotės dydis (prekių skaičius pakuotėje)","Gamintojas, šalis"]
["23.","Priemonės šlapimo pūslės kateterizacijai"]
["23.1.","Kateteris, šlapimo, Foley, vienkartinis",1000,"vnt.",null,{"$f":"IF(ISBLANK(E123),\"\", PRODUCT(C123,E123))","v":""}]
["23.2.","Šlapimo surinkiklis, vienkartinis",1000,"vnt.",null,{"$f":"IF(ISBLANK(E124),\"\", PRODUCT(C124,E124))","v":""}]
[null,null,null,null,"Suma be PVM",{"$f":"IF((SUMPRODUCT(--(F123:F124=\"\"))>0), \"\", SUM(F123:F124))","v":""},{"$f":"IF((SUMPRODUCT(--(F123:F124=\"\"))>0), \"Neužpildytos visų objektų kainos\", \"\")","v":"Neužpildytos visų objektų kainos"}]
[null,null,null,null,"PVM suma"]
[null,null,null,null,"Suma su PVM",{"$f":"IF(ISBLANK(F126), \"\", SUM(F125:F126))","v":""}]
[]
[]
[]
["24. DALIS","ZONDAS, SKRANDŽIO PLOVIMUI, STERILUS "]
[]
["Tiekėjo pasiūlymas:"]
["Nr.","Pavadinimas","Kiekis","Mato vienetas","Kaina be PVM, Eur","Suma be PVM, Eur","Prekės pavadinimas, modelis, kodas","Pakuotės dydis (prekių skaičius pakuotėje)","Gamintojas, šalis"]
["24.","Zondas, skrandžio plovimui, sterilus "]
["24.1.","Zondas, skrandžio plovimui, sterilus ",350,"vnt.",null,{"$f":"IF(ISBLANK(E136),\"\", PRODUCT(C136,E136))","v":""}]
[null,null,null,null,"Suma be PVM",{"$f":"IF(F136=\"\",\"\",SUM(F136:F136))","v":""},{"$f":"IF(F136=\"\",\"Neužpildytos visos objektų kainos\",\"\")","v":"Neužpildytos visos objektų kainos"}]
[null,null,null,null,"PVM suma"]
[null,null,null,null,"Suma su PVM",{"$f":"IF(ISBLANK(F138), \"\", SUM(F137:F138))","v":""}]
[]
[]
[]
["25. DALIS","KRAUJO PERPYLIMO SISTEMA, VIENKARTINĖ"]
[]
["Tiekėjo pasiūlymas:"]
["Nr.","Pavadinimas","Kiekis","Mato vienetas","Kaina be PVM, Eur","Suma be PVM, Eur","Prekės pavadinimas, modelis, kodas","Pakuotės dydis (prekių skaičius pakuotėje)","Gamintojas, šalis"]
["25.","Kraujo perpylimo sistema, vienkartinė"]
["25.1.","Kraujo perpylimo sistema, vienkartinė",100,"vnt.",null,{"$f":"IF(ISBLANK(E148),\"\", PRODUCT(C148,E148))","v":""}]
[null,null,null,null,"Suma be PVM",{"$f":"IF(F148=\"\",\"\",SUM(F148:F148))","v":""},{"$f":"IF(F148=\"\",\"Neužpildytos visos objektų kainos\",\"\")","v":"Neužpildytos visos objektų kainos"}]
[null,null,null,null,"PVM suma"]
[null,null,null,null,"Suma su PVM",{"$f":"IF(ISBLANK(F150), \"\", SUM(F149:F150))","v":""}]
[]
[]
[]
["26. DALIS","LAIKIKLIS, SILIKONINIS, KRAUJAGYSLĖMS, STERILUS:"]
[]
["Tiekėjo pasiūlymas:"]
["Nr.","Pavadinimas","Kiekis","Mato vienetas","Kaina be PVM, Eur","Suma be PVM, Eur","Prekės pavadinimas, modelis, kodas","Pakuotės dydis (prekių skaičius pakuotėje)","Gamintojas, šalis"]
["26.","Laikiklis, silikoninis, kraujagyslėms, sterilus:"]
["26.1.","didelis",100,"vnt.",null,{"$f":"IF(ISBLANK(E160),\"\", PRODUCT(C160,E160))","v":""}]
["26.2.","vidutinis",100,"vnt.",null,{"$f":"IF(ISBLANK(E161),\"\", PRODUCT(C161,E161))","v":""}]
["26.3.","mažas",100,"vnt.",null,{"$f":"IF(ISBLANK(E162),\"\", PRODUCT(C162,E162))","v":""}]
[null,null,null,null,"Suma be PVM",{"$f":"IF((SUMPRODUCT(--(F160:F162=\"\"))>0), \"\", SUM(F160:F162))","v":""},{"$f":"IF((SUMPRODUCT(--(F160:F162=\"\"))>0), \"Neužpildytos visų objektų kainos\", \"\")","v":"Neužpildytos visų objektų kainos"}]
[null,null,null,null,"PVM suma"]
[null,null,null,null,"Suma su PVM",{"$f":"IF(ISBLANK(F164), \"\", SUM(F163:F164))","v":""}]
[]
[]
[]
["27. DALIS","PRIEMONĖS ELEKTROCHIRURGINIAM GENERATORIUI:"]
[]
["Tiekėjo pasiūlymas:"]
["Nr.","Pavadinimas","Kiekis","Mato vienetas","Kaina be PVM, Eur","Suma be PVM, Eur","Prekės pavadinimas, modelis, kodas","Pakuotės dydis (prekių skaičius pakuotėje)","Gamintojas, šalis"]
["27.","Priemonės elektrochirurginiam generatoriui:"]
["27.1.","Padas, vienkartinis ",20,"vnt.",null,{"$f":"IF(ISBLANK(E174),\"\", PRODUCT(C174,E174))","v":""}]
["27.2.","Skalpelis, vienkartinis",20,"vnt.",null,{"$f":"IF(ISBLANK(E175),\"\", PRODUCT(C175,E175))","v":""}]
[null,null,null,null,"Suma be PVM",{"$f":"IF((SUMPRODUCT(--(F174:F175=\"\"))>0), \"\", SUM(F174:F175))","v":""},{"$f":"IF((SUMPRODUCT(--(F174:F175=\"\"))>0), \"Neužpildytos visų objektų kainos\", \"\")","v":"Neužpildytos visų objektų kainos"}]
[null,null,null,null,"PVM suma"]
[null,null,null,null,"Suma su PVM",{"$f":"IF(ISBLANK(F177), \"\", SUM(F176:F177))","v":""}]
[]
[]
[]
["28. DALIS","KAUKĖ, CHIRURGINĖ, SU PLASTIKINE APSAUGA "]
[]
["Tiekėjo pasiūlymas:"]
["Nr.","Pavadinimas","Kiekis","Mato vienetas","Kaina be PVM, Eur","Suma be PVM, Eur","Prekės pavadinimas, modelis, kodas","Pakuotės dydis (prekių skaičius pakuotėje)","Gamintojas, šalis"]
["28.","Kaukė, chirurginė, su plastikine apsauga "]
["28.1.","Kaukė, chirurginė, su plastikine apsauga ",200,"vnt.",null,{"$f":"IF(ISBLANK(E187),\"\", PRODUCT(C187,E187))","v":""}]
[null,null,null,null,"Suma be PVM",{"$f":"IF(F187=\"\",\"\",SUM(F187:F187))","v":""},{"$f":"IF(F187=\"\",\"Neužpildytos visos objektų kainos\",\"\")","v":"Neužpildytos visos objektų kainos"}]
[null,null,null,null,"PVM suma"]
[null,null,null,null,"Suma su PVM",{"$f":"IF(ISBLANK(F189), \"\", SUM(F188:F189))","v":""}]
[]
[]
[]
["29. DALIS","PLĖVELĖ, LIPNI, OPERACINIAM LAUKUI"]
[]
["Tiekėjo pasiūlymas:"]
["Nr.","Pavadinimas","Kiekis","Mato vienetas","Kaina be PVM, Eur","Suma be PVM, Eur","Prekės pavadinimas, modelis, kodas","Pakuotės dydis (prekių skaičius pakuotėje)","Gamintojas, šalis"]
["29.","Plėvelė, lipni, operaciniam laukui"]
["29.1.","Plėvelė, lipni, operaciniam laukui",100,"vnt.",null,{"$f":"IF(ISBLANK(E199),\"\", PRODUCT(C199,E199))","v":""}]
[null,null,null,null,"Suma be PVM",{"$f":"IF(F199=\"\",\"\",SUM(F199:F199))","v":""},{"$f":"IF(F199=\"\",\"Neužpildytos visos objektų kainos\",\"\")","v":"Neužpildytos visos objektų kainos"}]
[null,null,null,null,"PVM suma"]
[null,null,null,null,"Suma su PVM",{"$f":"IF(ISBLANK(F201), \"\", SUM(F200:F201))","v":""}]
[]
[]
[]
["30. DALIS","SKALPELIS CHIRURGINIS, STERILUS"]
[]
["Tiekėjo pasiūlymas:"]
["Nr.","Pavadinimas","Kiekis","Mato vienetas","Kaina be PVM, Eur","Suma be PVM, Eur","Prekės pavadinimas, modelis, kodas","Pakuotės dydis (prekių skaičius pakuotėje)","Gamintojas, šalis"]
["30.","Skalpelis chirurginis, sterilus"]
["30.1.","Skalpelis chirurginis, sterilus",760,"vnt.",null,{"$f":"IF(ISBLANK(E211),\"\", PRODUCT(C211,E211))","v":""}]
[null,null,null,null,"Suma be PVM",{"$f":"IF(F211=\"\",\"\",SUM(F211:F211))","v":""},{"$f":"IF(F211=\"\",\"Neužpildytos visos objektų kainos\",\"\")","v":"Neužpildytos visos objektų kainos"}]
[null,null,null,null,"PVM suma"]
[null,null,null,null,"Suma su PVM",{"$f":"IF(ISBLANK(F213), \"\", SUM(F212:F213))","v":""}]
[]
[]
[]
["31. DALIS","KATETERIS TROMBO PAŠALINIMUI"]
[]
["Tiekėjo pasiūlymas:"]
["Nr.","Pavadinimas","Kiekis","Mato vienetas","Kaina be PVM, Eur","Suma be PVM, Eur","Prekės pavadinimas, modelis, kodas","Pakuotės dydis (prekių skaičius pakuotėje)","Gamintojas, šalis"]
["31.","Kateteris trombo pašalinimui"]
["31.1.","Kateteris trombo pašalinimui",300,"vnt.",null,{"$f":"IF(ISBLANK(E223),\"\", PRODUCT(C223,E223))","v":""}]
[null,null,null,null,"Suma be PVM",{"$f":"IF(F223=\"\",\"\",SUM(F223:F223))","v":""},{"$f":"IF(F223=\"\",\"Neužpildytos visos objektų kainos\",\"\")","v":"Neužpildytos visos objektų kainos"}]
[null,null,null,null,"PVM suma"]
[null,null,null,null,"Suma su PVM",{"$f":"IF(ISBLANK(F225), \"\", SUM(F224:F225))","v":""}]
[]
[]
[]
["32. DALIS","RINKINYS HIPOTERMIJOS APKLOTO, VIENKARTINIS"]
[]
["Tiekėjo pasiūlymas:"]
["Nr.","Pavadinimas","Kiekis","Mato vienetas","Kaina be PVM, Eur","Suma be PVM, Eur","Prekės pavadinimas, modelis, kodas","Pakuotės dydis (prekių skaičius pakuotėje)","Gamintojas, šalis"]
["32.","Rinkinys hipotermijos apkloto, vienkartinis"]
["32.1.","Rinkinys hipotermijos apkloto, vienkartinis",50,"vnt.",null,{"$f":"IF(ISBLANK(E235),\"\", PRODUCT(C235,E235))","v":""}]
[null,null,null,null,"Suma be PVM",{"$f":"IF(F235=\"\",\"\",SUM(F235:F235))","v":""},{"$f":"IF(F235=\"\",\"Neužpildytos visos objektų kainos\",\"\")","v":"Neužpildytos visos objektų kainos"}]
[null,null,null,null,"PVM suma"]
[null,null,null,null,"Suma su PVM",{"$f":"IF(ISBLANK(F237), \"\", SUM(F236:F237))","v":""}]
[]
[]
[]
["33. DALIS","APKLOTAS, TERMOIZOLIACINIS, FOLIJA."]
[]
["Tiekėjo pasiūlymas:"]
["Nr.","Pavadinimas","Kiekis","Mato vienetas","Kaina be PVM, Eur","Suma be PVM, Eur","Prekės pavadinimas, modelis, kodas","Pakuotės dydis (prekių skaičius pakuotėje)","Gamintojas, šalis"]
["33.","Apklotas, termoizoliacinis, folija."]
["33.1.","Apklotas, termoizoliacinis, folija.",20000,"vnt.",null,{"$f":"IF(ISBLANK(E247),\"\", PRODUCT(C247,E247))","v":""}]
[null,null,null,null,"Suma be PVM",{"$f":"IF(F247=\"\",\"\",SUM(F247:F247))","v":""},{"$f":"IF(F247=\"\",\"Neužpildytos visos objektų kainos\",\"\")","v":"Neužpildytos visos objektų kainos"}]
[null,null,null,null,"PVM suma"]
[null,null,null,null,"Suma su PVM",{"$f":"IF(ISBLANK(F249), \"\", SUM(F248:F249))","v":""}]
[]
[]
[]
["34. DALIS","INTRAOSALINĖ ŠAUDYKLĖ SU PRIEDAIS:"]
[]
["Tiekėjo pasiūlymas:"]
["Nr.","Pavadinimas","Kiekis","Mato vienetas","Kaina be PVM, Eur","Suma be PVM, Eur","Prekės pavadinimas, modelis, kodas","Pakuotės dydis (prekių skaičius pakuotėje)","Gamintojas, šalis"]
["34.","Intraosalinė šaudyklė su priedais:"]
["34.1.","Intraosalinė šaudyklė, sterili",800,"vnt.",null,{"$f":"IF(ISBLANK(E259),\"\", PRODUCT(C259,E259))","v":""}]
["34.2.","Tvarstis fiksavimui",900,"vnt.",null,{"$f":"IF(ISBLANK(E260),\"\", PRODUCT(C260,E260))","v":""}]
[null,null,null,null,"Suma be PVM",{"$f":"IF((SUMPRODUCT(--(F259:F260=\"\"))>0), \"\", SUM(F259:F260))","v":""},{"$f":"IF((SUMPRODUCT(--(F259:F260=\"\"))>0), \"Neužpildytos visų objektų kainos\", \"\")","v":"Neužpildytos visų objektų kainos"}]
[null,null,null,null,"PVM suma"]
[null,null,null,null,"Suma su PVM",{"$f":"IF(ISBLANK(F262), \"\", SUM(F261:F262))","v":""}]
[]
[]
[]
["35. DALIS","ELEKTRODAI DEFIBRILIACIJAI"]
[]
["Tiekėjo pasiūlymas:"]
["Nr.","Pavadinimas","Kiekis","Mato vienetas","Kaina be PVM, Eur","Suma be PVM, Eur","Prekės pavadinimas, modelis, kodas","Pakuotės dydis (prekių skaičius pakuotėje)","Gamintojas, šalis"]
["35.","Elektrodai defibriliacijai"]
["35.1.","Elektrodai defibriliacijai, AED ZOLL plus aparatui",48,"kompl.",null,{"$f":"IF(ISBLANK(E272),\"\", PRODUCT(C272,E272))","v":""}]
["35.2.","Elektrodai defibriliacijai, AED ZOLL R SERIES BLS aparatui",48,"kompl.",null,{"$f":"IF(ISBLANK(E273),\"\", PRODUCT(C273,E273))","v":""}]
[null,null,null,null,"Suma be PVM",{"$f":"IF((SUMPRODUCT(--(F272:F273=\"\"))>0), \"\", SUM(F272:F273))","v":""},{"$f":"IF((SUMPRODUCT(--(F272:F273=\"\"))>0), \"Neužpildytos visų objektų kainos\", \"\")","v":"Neužpildytos visų objektų kainos"}]
[null,null,null,null,"PVM suma"]
[null,null,null,null,"Suma su PVM",{"$f":"IF(ISBLANK(F275), \"\", SUM(F274:F275))","v":""}]
[]
[]
[]
["36. DALIS","DANGTELIS AKIES, PLASTIKINIS"]
[]
["Tiekėjo pasiūlymas:"]
["Nr.","Pavadinimas","Kiekis","Mato vienetas","Kaina be PVM, Eur","Suma be PVM, Eur","Prekės pavadinimas, modelis, kodas","Pakuotės dydis (prekių skaičius pakuotėje)","Gamintojas, šalis"]
["36.","Dangtelis akies, plastikinis"]
["36.1.","Dangtelis akies, plastikinis",5000,"vnt.",null,{"$f":"IF(ISBLANK(E285),\"\", PRODUCT(C285,E285))","v":""}]
[null,null,null,null,"Suma be PVM",{"$f":"IF(F285=\"\",\"\",SUM(F285:F285))","v":""},{"$f":"IF(F285=\"\",\"Neužpildytos visos objektų kainos\",\"\")","v":"Neužpildytos visos objektų kainos"}]
[null,null,null,null,"PVM suma"]
[null,null,null,null,"Suma su PVM",{"$f":"IF(ISBLANK(F287), \"\", SUM(F286:F287))","v":""}]
[]
[]
[]
["37. DALIS","VARŽTIS INTRAVENINEI INFUZIJAI"]
[]
["Tiekėjo pasiūlymas:"]
["Nr.","Pavadinimas","Kiekis","Mato vienetas","Kaina be PVM, Eur","Suma be PVM, Eur","Prekės pavadinimas, modelis, kodas","Pakuotės dydis (prekių skaičius pakuotėje)","Gamintojas, šalis"]
["37.","Varžtis intraveninei infuzijai"]
["37.1.","Varžtis intraveninei infuzijai",1200,"vnt.",null,{"$f":"IF(ISBLANK(E297),\"\", PRODUCT(C297,E297))","v":""}]
[null,null,null,null,"Suma be PVM",{"$f":"IF(F297=\"\",\"\",SUM(F297:F297))","v":""},{"$f":"IF(F297=\"\",\"Neužpildytos visos objektų kainos\",\"\")","v":"Neužpildytos visos objektų kainos"}]
[null,null,null,null,"PVM suma"]
[null,null,null,null,"Suma su PVM",{"$f":"IF(ISBLANK(F299), \"\", SUM(F298:F299))","v":""}]
[]
[]
[]
[]
["39. DALIS","ĮTVARAS, UNIVERSALUS, SUSUKAMAS"]
[]
["Tiekėjo pasiūlymas:"]
["Nr.","Pavadinimas","Kiekis","Mato vienetas","Kaina be PVM, Eur","Suma be PVM, Eur","Prekės pavadinimas, modelis, kodas","Pakuotės dydis (prekių skaičius pakuotėje)","Gamintojas, šalis"]
["39.","Įtvaras, universalus, susukamas"]
["39.1.","Įtvaras, universalus, susukamas",7000,"vnt.",null,{"$f":"IF(ISBLANK(E310),\"\", PRODUCT(C310,E310))","v":""}]
[null,null,null,null,"Suma be PVM",{"$f":"IF(F310=\"\",\"\",SUM(F310:F310))","v":""},{"$f":"IF(F310=\"\",\"Neužpildytos visos objektų kainos\",\"\")","v":"Neužpildytos visos objektų kainos"}]
[null,null,null,null,"PVM suma"]
[null,null,null,null,"Suma su PVM",{"$f":"IF(ISBLANK(F312), \"\", SUM(F311:F312))","v":""}]
[]
[]
[]
["40. DALIS","AMBU VENTILIACIJOS MAIŠAS, SU DĖKLU"]
[]
["Tiekėjo pasiūlymas:"]
["Nr.","Pavadinimas","Kiekis","Mato vienetas","Kaina be PVM, Eur","Suma be PVM, Eur","Prekės pavadinimas, modelis, kodas","Pakuotės dydis (prekių skaičius pakuotėje)","Gamintojas, šalis"]
["40.","Ambu ventiliacijos maišas, su dėklu"]
["40.1.","Ambu ventiliacijos maišas, su dėklu",300,"vnt.",null,{"$f":"IF(ISBLANK(E322),\"\", PRODUCT(C322,E322))","v":""}]
[null,null,null,null,"Suma be PVM",{"$f":"IF(F322=\"\",\"\",SUM(F322:F322))","v":""},{"$f":"IF(F322=\"\",\"Neužpildytos visos objektų kainos\",\"\")","v":"Neužpildytos visos objektų kainos"}]
[null,null,null,null,"PVM suma"]
[null,null,null,null,"Suma su PVM",{"$f":"IF(ISBLANK(F324), \"\", SUM(F323:F324))","v":""}]
[]
[]
[]
["41. DALIS","MATUOKLIS, KRAUJOSPŪDŽIO, MECHANINIS"]
[]
["Tiekėjo pasiūlymas:"]
["Nr.","Pavadinimas","Kiekis","Mato vienetas","Kaina be PVM, Eur","Suma be PVM, Eur","Prekės pavadinimas, modelis, kodas","Pakuotės dydis (prekių skaičius pakuotėje)","Gamintojas, šalis"]
["41.","Matuoklis, kraujospūdžio, mechaninis"]
["41.1.","Matuoklis, kraujospūdžio, mechaninis",300,"vnt.",null,{"$f":"IF(ISBLANK(E334),\"\", PRODUCT(C334,E334))","v":""}]
[null,null,null,null,"Suma be PVM",{"$f":"IF(F334=\"\",\"\",SUM(F334:F334))","v":""},{"$f":"IF(F334=\"\",\"Neužpildytos visos objektų kainos\",\"\")","v":"Neužpildytos visos objektų kainos"}]
[null,null,null,null,"PVM suma"]
[null,null,null,null,"Suma su PVM",{"$f":"IF(ISBLANK(F336), \"\", SUM(F335:F336))","v":""}]
[]
[]
[]
["42. DALIS","KRAUJOSPŪDŽIO MATUOKLIS, AUTOMATINIS"]
[]
["Tiekėjo pasiūlymas:"]
["Nr.","Pavadinimas","Kiekis","Mato vienetas","Kaina be PVM, Eur","Suma be PVM, Eur","Prekės pavadinimas, modelis, kodas","Pakuotės dydis (prekių skaičius pakuotėje)","Gamintojas, šalis"]
["42.","Kraujospūdžio matuoklis, automatinis"]
["42.1.","Kraujospūdžio matuoklis, automatinis",20,"vnt.",null,{"$f":"IF(ISBLANK(E346),\"\", PRODUCT(C346,E346))","v":""}]
[null,null,null,null,"Suma be PVM",{"$f":"IF(F346=\"\",\"\",SUM(F346:F346))","v":""},{"$f":"IF(F346=\"\",\"Neužpildytos visos objektų kainos\",\"\")","v":"Neužpildytos visos objektų kainos"}]
[null,null,null,null,"PVM suma"]
[null,null,null,null,"Suma su PVM",{"$f":"IF(ISBLANK(F348), \"\", SUM(F347:F348))","v":""}]
[]
[]
[]
["43. DALIS","STETOFONENDOSKOPAS"]
[]
["Tiekėjo pasiūlymas:"]
["Nr.","Pavadinimas","Kiekis","Mato vienetas","Kaina be PVM, Eur","Suma be PVM, Eur","Prekės pavadinimas, modelis, kodas","Pakuotės dydis (prekių skaičius pakuotėje)","Gamintojas, šalis"]
["43.","Stetofonendoskopas"]
["43.1.","Stetofonendoskopas",300,"vnt.",null,{"$f":"IF(ISBLANK(E358),\"\", PRODUCT(C358,E358))","v":""}]
[null,null,null,null,"Suma be PVM",{"$f":"IF(F358=\"\",\"\",SUM(F358:F358))","v":""},{"$f":"IF(F358=\"\",\"Neužpildytos visos objektų kainos\",\"\")","v":"Neužpildytos visos objektų kainos"}]
[null,null,null,null,"PVM suma"]
[null,null,null,null,"Suma su PVM",{"$f":"IF(ISBLANK(F360), \"\", SUM(F359:F360))","v":""}]
[]
[]
[]
["44. DALIS","INFUZIJOS SPAUDIMO SUDARYMO MAIŠAS, BE MANOMETRO"]
[]
["Tiekėjo pasiūlymas:"]
["Nr.","Pavadinimas","Kiekis","Mato vienetas","Kaina be PVM, Eur","Suma be PVM, Eur","Prekės pavadinimas, modelis, kodas","Pakuotės dydis (prekių skaičius pakuotėje)","Gamintojas, šalis"]
["44.","Infuzijos spaudimo sudarymo maišas, be manometro"]
["44.1.","Infuzijos spaudimo sudarymo maišas, be manometro",150,"vnt.",44,{"$f":"IF(ISBLANK(E370),\"\", PRODUCT(C370,E370))","v":6600},"Pressure infusion cuffs reusable 500ml, Nr.58-02-050","1vnt.","VBM Medizintechnik, Vokietija"]
[null,null,null,null,"Suma be PVM",{"$f":"IF(F370=\"\",\"\",SUM(F370:F370))","v":6600},{"$f":"IF(F370=\"\",\"Neužpildytos visos objektų kainos\",\"\")","v":""}]
[null,null,null,null,"PVM suma",{"$f":"F371*0.21","v":1386}]
[null,null,null,null,"Suma su PVM",{"$f":"IF(ISBLANK(F372), \"\", SUM(F371:F372))","v":7986}]
[]
[]
[]
["45. DALIS","PULSOKSIMETRAS"]
[]
["Tiekėjo pasiūlymas:"]
["Nr.","Pavadinimas","Kiekis","Mato vienetas","Kaina be PVM, Eur","Suma be PVM, Eur","Prekės pavadinimas, modelis, kodas","Pakuotės dydis (prekių skaičius pakuotėje)","Gamintojas, šalis"]
["45.","Pulsoksimetras"]
["45.1.","Pulsoksimetras",300,"vnt.",null,{"$f":"IF(ISBLANK(E382),\"\", PRODUCT(C382,E382))","v":""}]
[null,null,null,null,"Suma be PVM",{"$f":"IF(F382=\"\",\"\",SUM(F382:F382))","v":""},{"$f":"IF(F382=\"\",\"Neužpildytos visos objektų kainos\",\"\")","v":"Neužpildytos visos objektų kainos"}]
[null,null,null,null,"PVM suma"]
[null,null,null,null,"Suma su PVM",{"$f":"IF(ISBLANK(F384), \"\", SUM(F383:F384))","v":""}]
[]
[]
[]
["46. DALIS","PINCETAS ANATOMINIS "]
[]
["Tiekėjo pasiūlymas:"]
["Nr.","Pavadinimas","Kiekis","Mato vienetas","Kaina be PVM, Eur","Suma be PVM, Eur","Prekės pavadinimas, modelis, kodas","Pakuotės dydis (prekių skaičius pakuotėje)","Gamintojas, šalis"]
["46.","Pincetas anatominis "]
["46.1.","Pincetas anatominis ",300,"vnt.",null,{"$f":"IF(ISBLANK(E394),\"\", PRODUCT(C394,E394))","v":""}]
[null,null,null,null,"Suma be PVM",{"$f":"IF(F394=\"\",\"\",SUM(F394:F394))","v":""},{"$f":"IF(F394=\"\",\"Neužpildytos visos objektų kainos\",\"\")","v":"Neužpildytos visos objektų kainos"}]
[null,null,null,null,"PVM suma"]
[null,null,null,null,"Suma su PVM",{"$f":"IF(ISBLANK(F396), \"\", SUM(F395:F396))","v":""}]
[]
[]
[]
["47. DALIS","SPAUSTUKAS, MAGILL"]
[]
["Tiekėjo pasiūlymas:"]
["Nr.","Pavadinimas","Kiekis","Mato vienetas","Kaina be PVM, Eur","Suma be PVM, Eur","Prekės pavadinimas, modelis, kodas","Pakuotės dydis (prekių skaičius pakuotėje)","Gamintojas, šalis"]
["47.","Spaustukas, Magill"]
["47.1.","Spaustukas, Magill",400,"vnt.",null,{"$f":"IF(ISBLANK(E406),\"\", PRODUCT(C406,E406))","v":""}]
[null,null,null,null,"Suma be PVM",{"$f":"IF(F406=\"\",\"\",SUM(F406:F406))","v":""},{"$f":"IF(F406=\"\",\"Neužpildytos visos objektų kainos\",\"\")","v":"Neužpildytos visos objektų kainos"}]
[null,null,null,null,"PVM suma"]
[null,null,null,null,"Suma su PVM",{"$f":"IF(ISBLANK(F408), \"\", SUM(F407:F408))","v":""}]
[]
[]
[]
["48. DALIS","ŽIRKLĖS TVARSLIAVAI"]
[]
["Tiekėjo pasiūlymas:"]
["Nr.","Pavadinimas","Kiekis","Mato vienetas","Kaina be PVM, Eur","Suma be PVM, Eur","Prekės pavadinimas, modelis, kodas","Pakuotės dydis (prekių skaičius pakuotėje)","Gamintojas, šalis"]
["48.","Žirklės tvarsliavai"]
["48.1.","Žirklės tvarsliavai",3000,"vnt.",null,{"$f":"IF(ISBLANK(E418),\"\", PRODUCT(C418,E418))","v":""}]
[null,null,null,null,"Suma be PVM",{"$f":"IF(F418=\"\",\"\",SUM(F418:F418))","v":""},{"$f":"IF(F418=\"\",\"Neužpildytos visos objektų kainos\",\"\")","v":"Neužpildytos visos objektų kainos"}]
[null,null,null,null,"PVM suma"]
[null,null,null,null,"Suma su PVM",{"$f":"IF(ISBLANK(F420), \"\", SUM(F419:F420))","v":""}]
[]
[]
[]
["49. DALIS","NEŠTUVAI MEDŽIAGINIAI SU DĖKLU"]
[]
["Tiekėjo pasiūlymas:"]
["Nr.","Pavadinimas","Kiekis","Mato vienetas","Kaina be PVM, Eur","Suma be PVM, Eur","Prekės pavadinimas, modelis, kodas","Pakuotės dydis (prekių skaičius pakuotėje)","Gamintojas, šalis"]
["49.","Neštuvai medžiaginiai su dėklu"]
["49.1.","Neštuvai medžiaginiai su dėklu",3000,"vnt.",null,{"$f":"IF(ISBLANK(E430),\"\", PRODUCT(C430,E430))","v":""}]
[null,null,null,null,"Suma be PVM",{"$f":"IF(F430=\"\",\"\",SUM(F430:F430))","v":""},{"$f":"IF(F430=\"\",\"Neužpildytos visos objektų kainos\",\"\")","v":"Neužpildytos visos objektų kainos"}]
[null,null,null,null,"PVM suma"]
[null,null,null,null,"Suma su PVM",{"$f":"IF(ISBLANK(F432), \"\", SUM(F431:F432))","v":""}]
[]
[]
[]
["50. DALIS","STOVAS, MEDICININIŲ ATLIEKŲ  SU DUBENIMS"]
[]
["Tiekėjo pasiūlymas:"]
["Nr.","Pavadinimas","Kiekis","Mato vienetas","Kaina be PVM, Eur","Suma be PVM, Eur","Prekės pavadinimas, modelis, kodas","Pakuotės dydis (prekių skaičius pakuotėje)","Gamintojas, šalis"]
["50.","Stovas, medicininių atliekų  su dubenims"]
["50.1.","Stovas, medicininių atliekų su dubenims",2,"vnt.",null,{"$f":"IF(ISBLANK(E442),\"\", PRODUCT(C442,E442))","v":""}]
[null,null,null,null,"Suma be PVM",{"$f":"IF(F442=\"\",\"\",SUM(F442:F442))","v":""},{"$f":"IF(F442=\"\",\"Neužpildytos visos objektų kainos\",\"\")","v":"Neužpildytos visos objektų kainos"}]
[null,null,null,null,"PVM suma"]
[null,null,null,null,"Suma su PVM",{"$f":"IF(ISBLANK(F444), \"\", SUM(F443:F444))","v":""}]
[]
[]
[]
["51. DALIS","LENTA PACIENTŲ PERSLINKIMO "]
[]
["Tiekėjo pasiūlymas:"]
["Nr.","Pavadinimas","Kiekis","Mato vienetas","Kaina be PVM, Eur","Suma be PVM, Eur","Prekės pavadinimas, modelis, kodas","Pakuotės dydis (prekių skaičius pakuotėje)","Gamintojas, šalis"]
["51.","Lenta pacientų perslinkimo "]
["51.1.","Lenta pacientų perslinkimo ",4,"vnt.",null,{"$f":"IF(ISBLANK(E454),\"\", PRODUCT(C454,E454))","v":""}]
[null,null,null,null,"Suma be PVM",{"$f":"IF(F454=\"\",\"\",SUM(F454:F454))","v":""},{"$f":"IF(F454=\"\",\"Neužpildytos visos objektų kainos\",\"\")","v":"Neužpildytos visos objektų kainos"}]
[null,null,null,null,"PVM suma"]
[null,null,null,null,"Suma su PVM",{"$f":"IF(ISBLANK(F456), \"\", SUM(F455:F456))","v":""}]
[]
[]
[]
["52. DALIS","KONTEINERIS, AŠTRIOMS ATLIEKOMS"]
[]
["Tiekėjo pasiūlymas:"]
["Nr.","Pavadinimas","Kiekis","Mato vienetas","Kaina be PVM, Eur","Suma be PVM, Eur","Prekės pavadinimas, modelis, kodas","Pakuotės dydis (prekių skaičius pakuotėje)","Gamintojas, šalis"]
["52.","Konteineris, aštrioms atliekoms"]
["52.1.","Konteineris, aštrioms atliekoms",300,"vnt.",null,{"$f":"IF(ISBLANK(E466),\"\", PRODUCT(C466,E466))","v":""}]
[null,null,null,null,"Suma be PVM",{"$f":"IF(F466=\"\",\"\",SUM(F466:F466))","v":""},{"$f":"IF(F466=\"\",\"Neužpildytos visos objektų kainos\",\"\")","v":"Neužpildytos visos objektų kainos"}]
[null,null,null,null,"PVM suma"]
[null,null,null,null,"Suma su PVM",{"$f":"IF(ISBLANK(F468), \"\", SUM(F467:F468))","v":""}]
[]
[]
[]
["53. DALIS","PRIEMONĖS KRŪTINĖS DRENAŽUI, KATETERIZACIJAI:"]
[]
["Tiekėjo pasiūlymas:"]
["Nr.","Pavadinimas","Kiekis","Mato vienetas","Kaina be PVM, Eur","Suma be PVM, Eur","Prekės pavadinimas, modelis, kodas","Pakuotės dydis (prekių skaičius pakuotėje)","Gamintojas, šalis"]
["53.","Priemonės krūtinės drenažui, kateterizacijai:"]
["53.1.","Kateteris torakalinis su atraumatiniu antgaliu",600,"vnt.",null,{"$f":"IF(ISBLANK(E478),\"\", PRODUCT(C478,E478))","v":""}]
["53.2.","Pasyvaus drenažo sistema",200,"vnt.",null,{"$f":"IF(ISBLANK(E479),\"\", PRODUCT(C479,E479))","v":""}]
[null,null,null,null,"Suma be PVM",{"$f":"IF((SUMPRODUCT(--(F478:F479=\"\"))>0), \"\", SUM(F478:F479))","v":""},{"$f":"IF((SUMPRODUCT(--(F478:F479=\"\"))>0), \"Neužpildytos visų objektų kainos\", \"\")","v":"Neužpildytos visų objektų kainos"}]
[null,null,null,null,"PVM suma"]
[null,null,null,null,"Suma su PVM",{"$f":"IF(ISBLANK(F481), \"\", SUM(F480:F481))","v":""}]

{"sheet":"Subtiekėjai ir priedai","index":1,"n_rows":100,"n_cols":11,"rows_kept":100,"cut":false,"hidden":false,"merged":[[47,0,47,9],[52,4,52,9],[50,4,50,9],[52,0,52,3],[50,0,50,3],[38,1,38,6],[37,1,37,6],[36,1,36,6],[35,1,35,6],[43,1,43,6],[42,1,42,6],[41,1,41,6],[40,1,40,6],[39,1,39,6],[32,0,32,9],[34,7,34,9],[34,1,34,6],[45,7,45,9],[42,7,42,9],[37,7,37,9],[36,7,36,9],[35,7,35,9],[44,7,44,9],[43,7,43,9],[41,7,41,9],[40,7,40,9],[39,7,39,9],[38,7,38,9],[45,1,45,6],[44,1,44,6],[1,0,2,10],[30,0,30,9],[14,5,14,7],[8,5,8,7],[7,5,7,7],[6,5,6,7],[14,8,14,9],[8,8,8,9],[7,8,7,9],[6,8,6,9],[14,0,14,1],[8,0,8,1],[7,0,7,1],[6,0,6,1],[14,2,14,4],[8,2,8,4],[7,2,7,4],[9,8,9,9],[6,2,6,4],[5,2,5,4],[5,8,5,9],[4,8,4,9],[4,5,4,7],[4,2,4,4],[4,0,4,1],[5,5,5,7],[5,0,5,1],[9,0,9,1],[13,2,13,4],[12,2,12,4],[11,2,11,4],[10,2,10,4],[9,2,9,4],[13,5,13,7],[12,5,12,7],[11,5,11,7],[10,5,10,7],[9,5,9,7],[16,0,16,10],[18,8,18,9],[18,5,18,7],[18,2,18,4],[18,0,18,1],[13,0,13,1],[12,0,12,1],[11,0,11,1],[10,0,10,1],[13,8,13,9],[12,8,12,9],[11,8,11,9],[10,8,10,9],[23,8,23,9],[22,8,22,9],[21,8,21,9],[20,8,20,9],[19,8,19,9],[28,8,28,9],[27,8,27,9],[26,8,26,9],[25,8,25,9],[24,8,24,9],[23,5,23,7],[22,5,22,7],[21,5,21,7],[20,5,20,7],[19,5,19,7],[28,5,28,7],[27,5,27,7],[26,5,26,7],[25,5,25,7],[24,5,24,7],[23,2,23,4],[22,2,22,4],[21,2,21,4],[20,2,20,4],[19,2,19,4],[28,2,28,4],[27,2,27,4],[26,2,26,4],[25,2,25,4],[24,2,24,4],[23,0,23,1],[22,0,22,1],[21,0,21,1],[20,0,20,1],[19,0,19,1],[28,0,28,1],[27,0,27,1],[26,0,26,1],[25,0,25,1],[24,0,24,1]]}
[]
["Ūkio subjektai (įskaitant kvazisubtiekėjus - fiziniai asmenys, kuriuos ketinama įdarbinti pirkimo laimėjimo atveju), kurių pajėgumais tiekėjas remiasi, kad atitiktų keliamus kvalifikacijos reikalavimus:"]
[]
[]
["Pavadinimas*",null,"Kodas, adresas",null,null,"Perduodami įsipareigojimai",null,null,"Perduodamų įsipareigojimų dalis nuo visos pirkimo sutarties (Eur arba %)",null,"Kval. Reikalavimo Nr."]
[]
[]
[]
[]
[]
[]
[]
[]
[]
[]
[]
["Subtiekėjams / subteikėjams / subrangovams numatomos perduoti veiklos (privaloma nurodyti) ir šių ūkio subjektų pavadinimai (jei žinomi):"]
[]
["Pavadinimas",null,"Kodas, adresas",null,null,"Perduodama veikla*",null,null,"Perduodamos veiklos dalis nuo visos pirkimo sutarties (Eur arba %)"]
[]
[]
[]
[]
[]
[]
[]
[]
[]
[]
[]
[]
[]
["Kartu su pasiūlymu pateikiami šie dokumentai:"]
[]
["Nr.","Dokumento  pavadinimas",null,null,null,null,null,"Dokumentas yra konfidencialus? Taip/Ne"]
["1","Jungtinės veiklos kopija (jei taikoma)"]
["2","Europos bendrasis viešųjų pirkimų dokumentas",null,null,null,null,null,"ne"]
["3","Subtiekimo sutartis, ketinimų protokolas, preliminarios sutartys ar kiti dokumentai, patvirtinantys, kad laimėjus pirkimą tiekėjui bus prieinami kitų ūkio subjektų ištekliai (jei pasitelkiami kvalifikacijos atitikimui)"]
["4","Pasiūlymo galiojimo užtikrinimas"]
["5","Pasiūlymo atitikimą pirkimo sąlygų techninei specifikacijai pagrindžiantys dokumentai",null,null,null,null,null,"taip"]
[]
[]
[]
[]
[]
[]
[]
["Pasiūlyme nurodyta Prekės kaina, išskyrus jos sudedamąsias dalis, subtiekėjai, taip pat kita informacija, kuri teisės aktų nustatyta tvarka turi būti skelbiama arba kitokiu būdu viešai prieinama visuomenei, nėra laikoma konfidencialia informacija. Konfidencialią informaciją sudaro, visų pirma, komercinė (gamybinė) paslaptis ir konfidencialieji pasiūlymų aspektai. Informacija, kurią viešai skelbti įpareigoja Lietuvos Respublikos įstatymai, negali būti tiekėjo nurodoma kaip konfidenciali, todėl, tiekėjui nurodžius tokią informaciją kaip konfidencialią, perkančioji organizacija turi teisę ją skelbti. Jei tiekėjas nenurodo konfidencialios informacijos, laikoma, kad konfidencialios informacijos tiekėjo pasiūlyme nėra. Vadovaujantis Informacijos viešinimo Centrinėje viešųjų pirkimų informacinėje sistemoje tvarkos aprašu, patvirtintu Viešųjų pirkimų tarnybos direktoriaus 2017 m. birželio 19 d. įsakymu Nr. 1S-91 „Dėl Informacijos viešinimo Centrinėje viešųjų pirkimų informacinėje sistemoje tvarkos aprašo patvirtinimo“, perkančioji organizacija laimėjusio dalyvio pasiūlymą, išskyrus informaciją, kurią tiekėjas nurodė kaip konfidencialią, paskelbs CVP IS."]
[]
[]
["Tiekėjo arba jo įgalioto asmens pareigų pavadinimas:",null,null,null,"Projektų vadybininkė"]
[]
["Pasirašančio asmens vardas ir pavardė:",null,null,null,"Vilma Dambravienė"]
[]
[]
[]
[]
[]
[]
[]
[]
[]
[]
[]
[]
[]
[]
[]
[]
[]
[]
[]
[]
[]
[]
[]
[]
[]
[]
[]
[]
[]
[]
[]
[]
[]
[]
[]
[]
[]
[]
[]
[]
[]
[]
[]
[]
[]
[]
["2082 2022-09-07 08:22:39"]